[Event "Titled Tuesday Blitz July 4 Early 2023"]
[White "Belov, Alexei"]
[Black "Mikhaylova, Irina"]
[WhiteFideId "4128206"]
[BlackFideId "4109040"]
[WhiteElo "2493"]
[BlackElo "2328"]
[Result "1-0"]
[Round "6"]
[TimeControl "180+2"]
[Date "2023.07.04"]
[WhiteClock "0:00:06"]
[BlackClock "0:00:00"]
[Board "169"]

1. e4 {[%clk 0:03:00]}  c5 {[%clk 0:02:59]} 2. Nf3 {[%clk 0:03:00]}  Nc6 {[%clk 0:03:00]} 3. d4 {[%clk 0:03:01]}  cxd4 {[%clk 0:03:00]} 4. Nxd4 {[%clk 0:03:02]}  e5 {[%clk 0:03:01]} 5. Nb5 {[%clk 0:03:02]}  d6 {[%clk 0:03:01]} 6. Bc4 {[%clk 0:03:02]}  Be7 {[%clk 0:02:59]} 7. O-O {[%clk 0:03:02]}  a6 {[%clk 0:02:54]} 8. N5c3 {[%clk 0:03:01]}  Be6 {[%clk 0:02:54]} 9. Bd5 {[%clk 0:03:01]}  Nf6 {[%clk 0:02:53]} 10. a4 {[%clk 0:02:28]}  O-O {[%clk 0:02:50]} 11. Na3 {[%clk 0:02:28]}  Bxd5 {[%clk 0:02:27]} 12. exd5 {[%clk 0:02:26]}  Nb8 {[%clk 0:02:11]} 13. Nc4 {[%clk 0:02:25]}  Nbd7 {[%clk 0:02:07]} 14. a5 {[%clk 0:02:24]}  b5 {[%clk 0:01:52]} 15. axb6 {[%clk 0:02:23]}  Nxb6 {[%clk 0:01:53]} 16. Na5 {[%clk 0:02:23]}  Qc7 {[%clk 0:01:41]} 17. Qd3 {[%clk 0:02:10]}  Rfc8 {[%clk 0:01:32]} 18. Rd1 {[%clk 0:02:07]}  Bf8 {[%clk 0:01:23]} 19. Bg5 {[%clk 0:02:03]}  Nfd7 {[%clk 0:01:16]} 20. Be3 {[%clk 0:01:58]}  Nc5 {[%clk 0:01:07]} 21. Qe2 {[%clk 0:01:47]}  f5 {[%clk 0:01:08]} 22. h3 {[%clk 0:01:31]}  g6 {[%clk 0:01:01]} 23. Kh1 {[%clk 0:01:23]}  Bg7 {[%clk 0:00:59]} 24. g4 {[%clk 0:01:18]}  f4 {[%clk 0:00:58]} 25. Bxc5 {[%clk 0:01:18]}  Qxc5 {[%clk 0:00:58]} 26. f3 {[%clk 0:01:17]}  Nc4 {[%clk 0:00:55]} 27. Nxc4 {[%clk 0:00:50]}  Qxc4 {[%clk 0:00:55]} 28. Rd3 {[%clk 0:00:46]}  Bf8 {[%clk 0:00:42]} 29. Ra4 {[%clk 0:00:33]}  Qc7 {[%clk 0:00:37]} 30. Qe4 {[%clk 0:00:33]}  Be7 {[%clk 0:00:35]} 31. Kg2 {[%clk 0:00:30]}  Rcb8 {[%clk 0:00:31]} 32. Rc4 {[%clk 0:00:28]}  Qd8 {[%clk 0:00:28]} 33. b3 {[%clk 0:00:28]}  Bf8 {[%clk 0:00:28]} 34. Rc6 {[%clk 0:00:28]}  Qh4 {[%clk 0:00:28]} 35. Ne2 {[%clk 0:00:25]}  a5 {[%clk 0:00:27]} 36. Rd1 {[%clk 0:00:19]}  a4 {[%clk 0:00:27]} 37. bxa4 {[%clk 0:00:19]}  Rb2 {[%clk 0:00:27]} 38. Rc7 {[%clk 0:00:18]}  Ra2 {[%clk 0:00:21]} 39. Nxf4 {[%clk 0:00:16]}  R2xa4 {[%clk 0:00:18]} 40. Rc4 {[%clk 0:00:11]}  Rxc4 {[%clk 0:00:17]} 41. Qxc4 {[%clk 0:00:12]}  exf4 {[%clk 0:00:18]} 42. Qxf4 {[%clk 0:00:12]}  Re8 {[%clk 0:00:17]} 43. Rd2 {[%clk 0:00:10]}  Qe1 {[%clk 0:00:17]} 44. Rf2 {[%clk 0:00:10]}  Re2 {[%clk 0:00:16]} 45. Qg3 {[%clk 0:00:08]}  Qd1 {[%clk 0:00:15]} 46. Rxe2 {[%clk 0:00:07]}  Qxe2+ {[%clk 0:00:15]} 47. Qf2 {[%clk 0:00:07]}  Qe5 {[%clk 0:00:15]} 48. c4 {[%clk 0:00:07]}  Bg7 {[%clk 0:00:14]} 49. Qc2 {[%clk 0:00:07]}  Qd4 {[%clk 0:00:15]} 50. Qe4 {[%clk 0:00:07]}  Be5 {[%clk 0:00:00]} 51. Qxd4 {[%clk 0:00:06]} 1-0


[Site "https://www.chess.com"]

[Event "Titled Tuesday Blitz July 4 Early 2023"]
[White "Gyulamiryan-koryun"]
[Black "Sokolov, Andrei"]
[BlackFideId "11600306"]
[WhiteElo "1686"]
[BlackElo "2308"]
[Result "0-1"]
[Round "6"]
[TimeControl "180+2"]
[Date "2023.07.04"]
[WhiteClock "0:00:34"]
[BlackClock "0:00:10"]
[Board "174"]

1. d4 {[%clk 0:03:00]}  d5 {[%clk 0:02:59]} 2. c4 {[%clk 0:03:01]}  c6 {[%clk 0:02:59]} 3. Nf3 {[%clk 0:03:01]}  Nf6 {[%clk 0:02:59]} 4. g3 {[%clk 0:03:01]}  Bf5 {[%clk 0:02:56]} 5. Qb3 {[%clk 0:02:59]}  Qb6 {[%clk 0:02:51]} 6. Nc3 {[%clk 0:02:49]}  e6 {[%clk 0:02:38]} 7. c5 {[%clk 0:02:42]}  Qxb3 {[%clk 0:02:30]} 8. axb3 {[%clk 0:02:43]}  Na6 {[%clk 0:02:19]} 9. Ra4 {[%clk 0:02:34]}  Ne4 {[%clk 0:02:11]} 10. Nd2 {[%clk 0:02:31]}  Nxd2 {[%clk 0:01:30]} 11. Kxd2 {[%clk 0:02:31]}  Nc7 {[%clk 0:01:27]} 12. e3 {[%clk 0:02:27]}  a6 {[%clk 0:01:25]} 13. Bd3 {[%clk 0:02:26]}  Bxd3 {[%clk 0:01:17]} 14. Kxd3 {[%clk 0:02:27]}  Kd7 {[%clk 0:01:13]} 15. f3 {[%clk 0:02:20]}  f5 {[%clk 0:01:04]} 16. e4 {[%clk 0:02:12]}  fxe4+ {[%clk 0:00:57]} 17. fxe4 {[%clk 0:02:12]}  Be7 {[%clk 0:00:54]} 18. e5 {[%clk 0:02:07]}  Rhf8 {[%clk 0:00:49]} 19. Be3 {[%clk 0:02:02]}  Rf3 {[%clk 0:00:47]} 20. Ke2 {[%clk 0:02:00]}  Raf8 {[%clk 0:00:46]} 21. Raa1 {[%clk 0:01:56]}  h6 {[%clk 0:00:18]} 22. Raf1 {[%clk 0:01:46]}  Rxf1 {[%clk 0:00:17]} 23. Rxf1 {[%clk 0:01:47]}  Rxf1 {[%clk 0:00:17]} 24. Kxf1 {[%clk 0:01:47]}  Nb5 {[%clk 0:00:17]} 25. Nxb5 {[%clk 0:01:47]}  axb5 {[%clk 0:00:17]} 26. b4 {[%clk 0:01:45]}  Ke8 {[%clk 0:00:15]} 27. Kf2 {[%clk 0:01:41]}  Kf7 {[%clk 0:00:15]} 28. Kf3 {[%clk 0:01:40]}  Kg6 {[%clk 0:00:16]} 29. h4 {[%clk 0:01:31]}  h5 {[%clk 0:00:13]} 30. Bg1 {[%clk 0:01:29]}  Kf5 {[%clk 0:00:14]} 31. Bf2 {[%clk 0:01:28]}  g6 {[%clk 0:00:13]} 32. Bg1 {[%clk 0:01:28]}  g5 {[%clk 0:00:13]} 33. Be3 {[%clk 0:01:27]}  g4+ {[%clk 0:00:13]} 34. Ke2 {[%clk 0:01:25]}  Ke4 {[%clk 0:00:13]} 35. Bg1 {[%clk 0:01:19]}  Bf8 {[%clk 0:00:13]} 36. Be3 {[%clk 0:01:03]}  Bg7 {[%clk 0:00:13]} 37. Bg1 {[%clk 0:00:56]}  Bh6 {[%clk 0:00:13]} 38. b3 {[%clk 0:00:55]}  Bc1 {[%clk 0:00:13]} 39. Bf2 {[%clk 0:00:48]}  Bb2 {[%clk 0:00:13]} 40. Be1 {[%clk 0:00:36]}  Bxd4 {[%clk 0:00:11]} 41. Bd2 {[%clk 0:00:37]}  Bxe5 {[%clk 0:00:11]} 42. Kf2 {[%clk 0:00:37]}  Bd4+ {[%clk 0:00:11]} 43. Ke2 {[%clk 0:00:37]}  e5 {[%clk 0:00:10]} 44. Be1 {[%clk 0:00:36]}  Bb2 {[%clk 0:00:10]} 45. Bd2 {[%clk 0:00:36]}  d4 {[%clk 0:00:10]} 46. Be1 {[%clk 0:00:36]}  Bc3 {[%clk 0:00:10]} 47. Bf2 {[%clk 0:00:36]}  Bxb4 {[%clk 0:00:10]} 48. Be1 {[%clk 0:00:35]}  Bxc5 {[%clk 0:00:10]} 49. Bd2 {[%clk 0:00:35]}  Bd6 {[%clk 0:00:09]} 50. b4 {[%clk 0:00:36]}  Be7 {[%clk 0:00:09]} 51. Bg5 {[%clk 0:00:33]}  Bxg5 {[%clk 0:00:08]} 52. hxg5 {[%clk 0:00:34]}  Kf5 {[%clk 0:00:08]} 53. Kd3 {[%clk 0:00:35]}  Kxg5 {[%clk 0:00:09]} 54. Ke4 {[%clk 0:00:35]}  h4 {[%clk 0:00:09]} 55. gxh4+ {[%clk 0:00:34]}  Kxh4 {[%clk 0:00:10]} 0-1


[Site "https://www.chess.com"]

[Event "Titled Tuesday Blitz July 4 Early 2023"]
[White "gueraumasague"]
[Black "agvania123"]
[WhiteElo "2510"]
[BlackElo "2268"]
[Result "1-0"]
[Round "6"]
[TimeControl "180+2"]
[Date "2023.07.04"]
[WhiteClock "0:00:15"]
[BlackClock "0:00:04"]
[Board "178"]

1. e4 {[%clk 0:03:00]}  d5 {[%clk 0:02:57]} 2. Nc3 {[%clk 0:03:01]}  dxe4 {[%clk 0:02:57]} 3. Nxe4 {[%clk 0:03:02]}  Nf6 {[%clk 0:02:57]} 4. Ng3 {[%clk 0:03:00]}  c6 {[%clk 0:02:48]} 5. d4 {[%clk 0:02:59]}  g6 {[%clk 0:02:43]} 6. Bc4 {[%clk 0:02:59]}  Bg7 {[%clk 0:02:43]} 7. Nf3 {[%clk 0:02:58]}  O-O {[%clk 0:02:44]} 8. O-O {[%clk 0:02:57]}  Bg4 {[%clk 0:02:44]} 9. c3 {[%clk 0:02:56]}  Nbd7 {[%clk 0:02:43]} 10. Re1 {[%clk 0:02:56]}  e6 {[%clk 0:02:40]} 11. h3 {[%clk 0:02:54]}  Bxf3 {[%clk 0:02:39]} 12. Qxf3 {[%clk 0:02:55]}  Nd5 {[%clk 0:02:39]} 13. Bd2 {[%clk 0:02:42]}  Qc7 {[%clk 0:02:30]} 14. Rad1 {[%clk 0:02:39]}  a5 {[%clk 0:02:25]} 15. Bc1 {[%clk 0:02:31]}  a4 {[%clk 0:02:20]} 16. a3 {[%clk 0:02:30]}  N7b6 {[%clk 0:02:12]} 17. Bd3 {[%clk 0:02:23]}  Nc8 {[%clk 0:02:08]} 18. h4 {[%clk 0:02:23]}  h5 {[%clk 0:02:01]} 19. Ne4 {[%clk 0:02:23]}  Nd6 {[%clk 0:02:00]} 20. Ng5 {[%clk 0:02:23]}  Nf5 {[%clk 0:01:55]} 21. g3 {[%clk 0:02:23]}  Rad8 {[%clk 0:01:45]} 22. Bc2 {[%clk 0:02:17]}  b5 {[%clk 0:01:43]} 23. Kg2 {[%clk 0:02:16]}  c5 {[%clk 0:01:43]} 24. dxc5 {[%clk 0:02:12]}  Qxc5 {[%clk 0:01:44]} 25. Bd3 {[%clk 0:02:06]}  Rd7 {[%clk 0:01:37]} 26. Rxe6 {[%clk 0:01:45]}  fxe6 {[%clk 0:01:29]} 27. Nxe6 {[%clk 0:01:46]}  Qe7 {[%clk 0:01:28]} 28. Nxf8 {[%clk 0:01:44]}  Bxf8 {[%clk 0:01:26]} 29. Bxf5 {[%clk 0:01:44]}  gxf5 {[%clk 0:01:20]} 30. Rxd5 {[%clk 0:01:44]}  Rxd5 {[%clk 0:01:19]} 31. Qxd5+ {[%clk 0:01:45]}  Qf7 {[%clk 0:01:12]} 32. Qxb5 {[%clk 0:01:45]}  Bd6 {[%clk 0:01:05]} 33. Be3 {[%clk 0:01:44]}  f4 {[%clk 0:01:03]} 34. Bxf4 {[%clk 0:01:36]}  Bxf4 {[%clk 0:01:01]} 35. gxf4 {[%clk 0:01:37]}  Kh8 {[%clk 0:00:38]} 36. Qe5+ {[%clk 0:01:16]}  Kh7 {[%clk 0:00:36]} 37. f5 {[%clk 0:01:14]}  Qg8+ {[%clk 0:00:33]} 38. Kh2 {[%clk 0:01:09]}  Qg4 {[%clk 0:00:30]} 39. Qe7+ {[%clk 0:01:03]}  Kh8 {[%clk 0:00:30]} 40. Qf8+ {[%clk 0:01:03]}  Kh7 {[%clk 0:00:26]} 41. Qf7+ {[%clk 0:01:03]}  Kh8 {[%clk 0:00:26]} 42. Qe8+ {[%clk 0:00:47]}  Kh7 {[%clk 0:00:21]} 43. Qe7+ {[%clk 0:00:48]}  Kh8 {[%clk 0:00:21]} 44. Qg5 {[%clk 0:00:49]}  Qf3 {[%clk 0:00:20]} 45. Kg1 {[%clk 0:00:43]}  Qd1+ {[%clk 0:00:19]} 46. Kg2 {[%clk 0:00:44]}  Qd5+ {[%clk 0:00:19]} 47. Kg3 {[%clk 0:00:41]}  Qd3+ {[%clk 0:00:19]} 48. f3 {[%clk 0:00:41]}  Qd6+ {[%clk 0:00:14]} 49. Kh3 {[%clk 0:00:40]}  Qd3 {[%clk 0:00:07]} 50. Qxh5+ {[%clk 0:00:40]}  Kg7 {[%clk 0:00:07]} 51. Qg6+ {[%clk 0:00:39]}  Kh8 {[%clk 0:00:07]} 52. Qh6+ {[%clk 0:00:37]}  Kg8 {[%clk 0:00:05]} 53. Qe6+ {[%clk 0:00:36]}  Kh8 {[%clk 0:00:06]} 54. Kg4 {[%clk 0:00:35]}  Qf1 {[%clk 0:00:06]} 55. f6 {[%clk 0:00:34]}  Qg2+ {[%clk 0:00:06]} 56. Kf4 {[%clk 0:00:31]}  Qh2+ {[%clk 0:00:07]} 57. Kf5 {[%clk 0:00:26]}  Qh3+ {[%clk 0:00:06]} 58. Ke5 {[%clk 0:00:26]}  Qg3+ {[%clk 0:00:06]} 59. Kd4 {[%clk 0:00:21]}  Qxh4+ {[%clk 0:00:06]} 60. Kd5 {[%clk 0:00:17]}  Qg5+ {[%clk 0:00:05]} 61. Kd6 {[%clk 0:00:16]}  Qd2+ {[%clk 0:00:05]} 62. Ke7 {[%clk 0:00:15]}  Qxb2 {[%clk 0:00:05]} 63. Qh3+ {[%clk 0:00:13]}  Kg8 {[%clk 0:00:03]} 64. f7+ {[%clk 0:00:14]}  Kg7 {[%clk 0:00:03]} 65. f8=Q+ {[%clk 0:00:15]}  Kg6 {[%clk 0:00:04]} 66. Qf6# {[%clk 0:00:15]} 1-0


[Site "https://www.chess.com"]

[Event "Titled Tuesday Blitz July 4 Early 2023"]
[White "Mazurkiewicz, Michal"]
[Black "laimis61"]
[WhiteFideId "1124943"]
[WhiteElo "2405"]
[BlackElo "2256"]
[Result "1-0"]
[Round "6"]
[TimeControl "180+2"]
[Date "2023.07.04"]
[WhiteClock "0:01:42"]
[BlackClock "0:00:47"]
[Board "181"]

1. e4 {[%clk 0:02:59]}  d6 {[%clk 0:02:56]} 2. d4 {[%clk 0:02:59]}  Nf6 {[%clk 0:02:54]} 3. Nc3 {[%clk 0:02:59]}  e5 {[%clk 0:02:53]} 4. dxe5 {[%clk 0:02:58]}  dxe5 {[%clk 0:02:53]} 5. Qxd8+ {[%clk 0:02:58]}  Kxd8 {[%clk 0:02:53]} 6. Bc4 {[%clk 0:02:58]}  Bb4 {[%clk 0:02:50]} 7. f3 {[%clk 0:02:57]}  Ke7 {[%clk 0:02:48]} 8. Bd2 {[%clk 0:02:56]}  Be6 {[%clk 0:02:41]} 9. Bxe6 {[%clk 0:02:44]}  Kxe6 {[%clk 0:02:40]} 10. O-O-O {[%clk 0:02:43]}  Nbd7 {[%clk 0:02:38]} 11. Nh3 {[%clk 0:02:39]}  h6 {[%clk 0:02:36]} 12. Nf2 {[%clk 0:02:39]}  a6 {[%clk 0:02:31]} 13. Nd3 {[%clk 0:02:39]}  Bd6 {[%clk 0:02:30]} 14. Rhe1 {[%clk 0:02:28]}  Rhd8 {[%clk 0:02:15]} 15. f4 {[%clk 0:02:26]}  exf4 {[%clk 0:02:09]} 16. Bxf4 {[%clk 0:02:14]}  Ne5 {[%clk 0:02:03]} 17. Nd5 {[%clk 0:02:06]}  Nxd3+ {[%clk 0:01:45]} 18. Rxd3 {[%clk 0:02:07]}  Bxf4+ {[%clk 0:01:39]} 19. Nxf4+ {[%clk 0:02:07]}  Ke7 {[%clk 0:01:39]} 20. e5 {[%clk 0:02:03]}  Nd7 {[%clk 0:01:30]} 21. Nd5+ {[%clk 0:02:02]}  Kf8 {[%clk 0:01:26]} 22. Nxc7 {[%clk 0:02:02]}  Rac8 {[%clk 0:01:25]} 23. e6 {[%clk 0:02:01]}  Rxc7 {[%clk 0:01:13]} 24. e7+ {[%clk 0:01:59]}  Ke8 {[%clk 0:01:13]} 25. exd8=R+ {[%clk 0:01:56]}  Kxd8 {[%clk 0:01:13]} 26. Kd2 {[%clk 0:01:49]}  Rc6 {[%clk 0:01:10]} 27. b3 {[%clk 0:01:44]}  Rf6 {[%clk 0:01:06]} 28. c4 {[%clk 0:01:42]}  Rf2+ {[%clk 0:01:01]} 29. Kc3 {[%clk 0:01:43]}  Kc8 {[%clk 0:00:51]} 30. Re8+ {[%clk 0:01:41]}  Kc7 {[%clk 0:00:47]} 31. Re7 {[%clk 0:01:42]} 1-0


[Site "https://www.chess.com"]

[Event "Titled Tuesday Blitz July 4 Early 2023"]
[White "GAO"]
[Black "Tuleyeva-Aketayeva, Dana"]
[BlackFideId "13701932"]
[WhiteElo "2395"]
[BlackElo "2246"]
[Result "1-0"]
[Round "6"]
[TimeControl "180+2"]
[Date "2023.07.04"]
[WhiteClock "0:00:17"]
[BlackClock "0:00:15"]
[Board "183"]

1. Nf3 {[%clk 0:03:00]}  Nf6 {[%clk 0:02:45]} 2. b3 {[%clk 0:02:59]}  g6 {[%clk 0:02:45]} 3. Bb2 {[%clk 0:02:58]}  Bg7 {[%clk 0:02:46]} 4. e3 {[%clk 0:02:58]}  O-O {[%clk 0:02:47]} 5. c4 {[%clk 0:02:58]}  b6 {[%clk 0:02:46]} 6. Nc3 {[%clk 0:02:58]}  Bb7 {[%clk 0:02:47]} 7. Be2 {[%clk 0:02:58]}  d6 {[%clk 0:02:47]} 8. d4 {[%clk 0:02:58]}  Nbd7 {[%clk 0:02:48]} 9. O-O {[%clk 0:02:57]}  e5 {[%clk 0:02:40]} 10. Qc2 {[%clk 0:02:56]}  Re8 {[%clk 0:02:33]} 11. Rfd1 {[%clk 0:02:55]}  Qe7 {[%clk 0:02:33]} 12. Rac1 {[%clk 0:02:55]}  e4 {[%clk 0:02:26]} 13. Nd2 {[%clk 0:02:52]}  c6 {[%clk 0:02:23]} 14. b4 {[%clk 0:02:48]}  a5 {[%clk 0:02:12]} 15. a3 {[%clk 0:02:47]}  axb4 {[%clk 0:02:08]} 16. axb4 {[%clk 0:02:47]}  d5 {[%clk 0:01:57]} 17. Ra1 {[%clk 0:02:46]}  Qxb4 {[%clk 0:01:50]} 18. Rab1 {[%clk 0:02:29]}  Qe7 {[%clk 0:01:44]} 19. Qb3 {[%clk 0:02:23]}  Reb8 {[%clk 0:01:37]} 20. cxd5 {[%clk 0:02:22]}  cxd5 {[%clk 0:01:35]} 21. Nb5 {[%clk 0:02:21]}  Ba6 {[%clk 0:01:32]} 22. Ba3 {[%clk 0:02:19]}  Qd8 {[%clk 0:01:25]} 23. Rdc1 {[%clk 0:01:56]}  Rc8 {[%clk 0:01:16]} 24. Bf1 {[%clk 0:01:38]}  Bf8 {[%clk 0:00:44]} 25. Bxf8 {[%clk 0:01:32]}  Qxf8 {[%clk 0:00:44]} 26. Nc7 {[%clk 0:01:27]}  Bc4 {[%clk 0:00:34]} 27. Bxc4 {[%clk 0:01:11]}  Rxc7 {[%clk 0:00:32]} 28. Bxd5 {[%clk 0:01:11]}  Ra3 {[%clk 0:00:28]} 29. Bxf7+ {[%clk 0:00:59]}  Kg7 {[%clk 0:00:27]} 30. Rxc7 {[%clk 0:00:51]}  Rxb3 {[%clk 0:00:26]} 31. Bxb3 {[%clk 0:00:52]}  Qd6 {[%clk 0:00:25]} 32. Rbc1 {[%clk 0:00:50]}  Qb4 {[%clk 0:00:24]} 33. R1c2 {[%clk 0:00:42]}  Kh6 {[%clk 0:00:22]} 34. h3 {[%clk 0:00:34]}  Qa3 {[%clk 0:00:22]} 35. Be6 {[%clk 0:00:30]}  Qd6 {[%clk 0:00:20]} 36. Bxd7 {[%clk 0:00:26]}  Nxd7 {[%clk 0:00:21]} 37. Nxe4 {[%clk 0:00:26]}  Qe6 {[%clk 0:00:22]} 38. Ng3 {[%clk 0:00:25]}  b5 {[%clk 0:00:21]} 39. R2c6 {[%clk 0:00:23]}  Qe8 {[%clk 0:00:18]} 40. Nf5+ {[%clk 0:00:21]}  Kg5 {[%clk 0:00:17]} 41. Nd6 {[%clk 0:00:22]}  Qb8 {[%clk 0:00:14]} 42. Rxd7 {[%clk 0:00:20]}  b4 {[%clk 0:00:15]} 43. Rb7 {[%clk 0:00:20]}  Qd8 {[%clk 0:00:14]} 44. Rxb4 {[%clk 0:00:16]}  Qa5 {[%clk 0:00:13]} 45. Rb5+ {[%clk 0:00:17]}  Qxb5 {[%clk 0:00:13]} 46. Nxb5 {[%clk 0:00:18]}  h5 {[%clk 0:00:12]} 47. Nc3 {[%clk 0:00:17]}  Kh6 {[%clk 0:00:12]} 48. h4 {[%clk 0:00:17]}  Kg7 {[%clk 0:00:11]} 49. g3 {[%clk 0:00:17]}  Kh6 {[%clk 0:00:12]} 50. Kg2 {[%clk 0:00:17]}  Kg7 {[%clk 0:00:12]} 51. Ne2 {[%clk 0:00:18]}  Kh6 {[%clk 0:00:13]} 52. Nf4 {[%clk 0:00:18]}  Kh7 {[%clk 0:00:13]} 53. Rxg6 {[%clk 0:00:18]}  Kh8 {[%clk 0:00:14]} 54. Rg5 {[%clk 0:00:18]}  Kh7 {[%clk 0:00:14]} 55. d5 {[%clk 0:00:19]}  Kh6 {[%clk 0:00:15]} 56. d6 {[%clk 0:00:19]}  Kh7 {[%clk 0:00:15]} 57. d7 {[%clk 0:00:19]}  Kh6 {[%clk 0:00:15]} 58. d8=Q {[%clk 0:00:17]}  Kh7 {[%clk 0:00:15]} 59. Qg8+ {[%clk 0:00:16]}  Kh6 {[%clk 0:00:15]} 60. Qg6# {[%clk 0:00:17]} 1-0


[Site "https://www.chess.com"]

[Event "Titled Tuesday Blitz July 4 Early 2023"]
[White "Tinmaz, Kerem"]
[Black "Peiris, T G M"]
[WhiteFideId "44559151"]
[BlackFideId "9901310"]
[WhiteElo "2381"]
[BlackElo "2236"]
[Result "1-0"]
[Round "6"]
[TimeControl "180+2"]
[Date "2023.07.04"]
[WhiteClock "0:00:04"]
[BlackClock "0:00:00"]
[Board "184"]

1. e4 {[%clk 0:03:00]}  c5 {[%clk 0:02:59]} 2. Nc3 {[%clk 0:03:00]}  e6 {[%clk 0:02:58]} 3. g3 {[%clk 0:02:56]}  d5 {[%clk 0:02:59]} 4. exd5 {[%clk 0:02:56]}  exd5 {[%clk 0:02:59]} 5. d4 {[%clk 0:02:56]}  Nc6 {[%clk 0:02:58]} 6. Nge2 {[%clk 0:02:53]}  Nf6 {[%clk 0:02:57]} 7. Bg2 {[%clk 0:02:52]}  Be7 {[%clk 0:02:54]} 8. O-O {[%clk 0:02:51]}  O-O {[%clk 0:02:54]} 9. dxc5 {[%clk 0:02:47]}  Bxc5 {[%clk 0:02:55]} 10. Nxd5 {[%clk 0:02:43]}  Be6 {[%clk 0:02:44]} 11. Nef4 {[%clk 0:02:26]}  Bf5 {[%clk 0:02:35]} 12. Be3 {[%clk 0:02:15]}  Bd6 {[%clk 0:02:14]} 13. c4 {[%clk 0:01:41]}  Be5 {[%clk 0:02:08]} 14. Qe2 {[%clk 0:01:32]}  Re8 {[%clk 0:01:57]} 15. Rad1 {[%clk 0:01:26]}  Qa5 {[%clk 0:01:55]} 16. a3 {[%clk 0:01:23]}  Rac8 {[%clk 0:01:48]} 17. Nxf6+ {[%clk 0:01:08]}  Bxf6 {[%clk 0:01:48]} 18. Nd5 {[%clk 0:01:08]}  Be5 {[%clk 0:01:41]} 19. Rfe1 {[%clk 0:01:04]}  h6 {[%clk 0:01:36]} 20. Qd2 {[%clk 0:00:49]}  Qa4 {[%clk 0:01:34]} 21. Rc1 {[%clk 0:00:32]}  Qb3 {[%clk 0:01:31]} 22. Bf4 {[%clk 0:00:27]}  Bxb2 {[%clk 0:01:15]} 23. Rxe8+ {[%clk 0:00:22]}  Rxe8 {[%clk 0:01:12]} 24. Re1 {[%clk 0:00:18]}  Rd8 {[%clk 0:01:07]} 25. Qe2 {[%clk 0:00:12]}  Bxa3 {[%clk 0:01:03]} 26. Be4 {[%clk 0:00:11]}  Bxe4 {[%clk 0:00:58]} 27. Qxe4 {[%clk 0:00:12]}  Bb4 {[%clk 0:00:54]} 28. Rb1 {[%clk 0:00:08]}  Qa3 {[%clk 0:00:45]} 29. Nxb4 {[%clk 0:00:08]}  Nxb4 {[%clk 0:00:39]} 30. Qe7 {[%clk 0:00:08]}  Qa5 {[%clk 0:00:13]} 31. Qxb4 {[%clk 0:00:08]}  Qa6 {[%clk 0:00:12]} 32. Qxb7 {[%clk 0:00:05]}  Qxc4 {[%clk 0:00:12]} 33. Qc7 {[%clk 0:00:04]}  Qd3 {[%clk 0:00:12]} 34. Re1 {[%clk 0:00:04]}  Rd7 {[%clk 0:00:10]} 35. Qc8+ {[%clk 0:00:04]}  Kh7 {[%clk 0:00:11]} 36. Rc1 {[%clk 0:00:03]}  g5 {[%clk 0:00:11]} 37. Be3 {[%clk 0:00:03]}  Kg7 {[%clk 0:00:10]} 38. Qc2 {[%clk 0:00:03]}  Qd5 {[%clk 0:00:09]} 39. Qc3+ {[%clk 0:00:03]}  Kh7 {[%clk 0:00:08]} 40. Ra1 {[%clk 0:00:03]}  f5 {[%clk 0:00:03]} 41. Rxa7 {[%clk 0:00:02]}  Rxa7 {[%clk 0:00:03]} 42. Bxa7 {[%clk 0:00:03]}  Qd1+ {[%clk 0:00:04]} 43. Kg2 {[%clk 0:00:04]}  Qd5+ {[%clk 0:00:05]} 44. Qf3 {[%clk 0:00:04]}  Qa5 {[%clk 0:00:03]} 45. Be3 {[%clk 0:00:05]}  Kg6 {[%clk 0:00:03]} 46. Qc6+ {[%clk 0:00:05]}  Kh5 {[%clk 0:00:03]} 47. h3 {[%clk 0:00:04]}  Qa8 {[%clk 0:00:00]} 48. Qxa8 {[%clk 0:00:04]} 1-0


[Site "https://www.chess.com"]

[Event "Titled Tuesday Blitz July 4 Early 2023"]
[White "Mishra, Manoj"]
[Black "Koridze, Lile"]
[WhiteFideId "5006007"]
[BlackFideId "13612514"]
[WhiteElo "2207"]
[BlackElo "2355"]
[Result "1-0"]
[Round "6"]
[TimeControl "180+2"]
[Date "2023.07.04"]
[WhiteClock "0:00:25"]
[BlackClock "0:00:28"]
[Board "187"]

1. d4 {[%clk 0:03:00]}  Nf6 {[%clk 0:02:59]} 2. Bg5 {[%clk 0:02:59]}  e6 {[%clk 0:02:59]} 3. e3 {[%clk 0:02:59]}  d5 {[%clk 0:02:59]} 4. Bd3 {[%clk 0:02:59]}  Be7 {[%clk 0:02:59]} 5. Nd2 {[%clk 0:02:58]}  c5 {[%clk 0:02:59]} 6. c3 {[%clk 0:02:58]}  h6 {[%clk 0:02:57]} 7. Bh4 {[%clk 0:02:57]}  Nc6 {[%clk 0:02:57]} 8. Ngf3 {[%clk 0:02:52]}  a6 {[%clk 0:02:56]} 9. Ne5 {[%clk 0:02:49]}  Nxe5 {[%clk 0:02:53]} 10. dxe5 {[%clk 0:02:49]}  Nd7 {[%clk 0:02:52]} 11. Bg3 {[%clk 0:02:45]}  Qc7 {[%clk 0:02:38]} 12. Nf3 {[%clk 0:02:43]}  b5 {[%clk 0:02:37]} 13. a4 {[%clk 0:02:41]}  Rb8 {[%clk 0:02:35]} 14. axb5 {[%clk 0:02:32]}  axb5 {[%clk 0:02:35]} 15. Bc2 {[%clk 0:02:30]}  b4 {[%clk 0:02:25]} 16. O-O {[%clk 0:02:30]}  O-O {[%clk 0:02:21]} 17. Qd3 {[%clk 0:02:29]}  g6 {[%clk 0:02:21]} 18. c4 {[%clk 0:02:26]}  Nb6 {[%clk 0:02:19]} 19. b3 {[%clk 0:02:17]}  Rd8 {[%clk 0:02:17]} 20. Qe2 {[%clk 0:02:15]}  dxc4 {[%clk 0:02:16]} 21. bxc4 {[%clk 0:02:15]}  Bb7 {[%clk 0:02:10]} 22. Bf4 {[%clk 0:02:11]}  Kg7 {[%clk 0:02:07]} 23. e4 {[%clk 0:02:08]}  Ra8 {[%clk 0:02:03]} 24. h4 {[%clk 0:02:06]}  Ba6 {[%clk 0:01:51]} 25. Bb3 {[%clk 0:02:02]}  Bb7 {[%clk 0:01:42]} 26. Qe3 {[%clk 0:01:56]}  h5 {[%clk 0:01:42]} 27. Bh6+ {[%clk 0:01:52]}  Kh7 {[%clk 0:01:42]} 28. Bg5 {[%clk 0:01:45]}  Bxg5 {[%clk 0:01:39]} 29. Nxg5+ {[%clk 0:01:42]}  Kg7 {[%clk 0:01:39]} 30. Qf4 {[%clk 0:01:27]}  Qe7 {[%clk 0:01:30]} 31. f3 {[%clk 0:01:15]}  Rxa1 {[%clk 0:01:18]} 32. Rxa1 {[%clk 0:01:14]}  Ra8 {[%clk 0:01:18]} 33. Rxa8 {[%clk 0:01:09]}  Nxa8 {[%clk 0:01:15]} 34. g4 {[%clk 0:01:09]}  hxg4 {[%clk 0:01:08]} 35. fxg4 {[%clk 0:01:06]}  Qd7 {[%clk 0:01:08]} 36. h5 {[%clk 0:00:48]}  Qd4+ {[%clk 0:00:55]} 37. Kh2 {[%clk 0:00:47]}  Qd7 {[%clk 0:00:35]} 38. h6+ {[%clk 0:00:42]}  Kxh6 {[%clk 0:00:33]} 39. Nxe6+ {[%clk 0:00:25]}  Kh7 {[%clk 0:00:28]} 40. Nf8+ {[%clk 0:00:25]} 1-0


[Site "https://www.chess.com"]